[Event "DMP-III LIGA Senior PK 2020"]
[Site "Bystre"]
[Date "2020.07.11"]
[Round "7.5"]
[White "Dziura, Wiktor"]
[Black "Medrygal, Rafal"]
[Result "0-1"]
[ECO "A00"]
[WhiteElo "1353"]
[BlackElo "1258"]
[Annotator "NA RC"]
[PlyCount "58"]
[EventDate "2020.07.05"]
[EventType "team-tourn"]
[EventCountry "POL"]
[SourceTitle "playchess.com"]
[Source "ChessBase"]
[SourceQuality "1"]
[TimeControl "5400+30"]

1. g3 {[%emt 0:00:00]} e5 {[%emt 0:00:00]} 2. Bg2 {[%emt 0:00:00]} Nf6 {[%emt 0:00:00]} 3. c4 {[%emt 0:00:00]} d5 {[%emt 0:01:00]} 4. cxd5 {[%emt 0:00:09]} Nxd5 {[%emt 0:00:09]} 5. Nc3 {[%emt 0:00:21]} Nxc3 6. bxc3 {[%emt 0:00:05]} Bc5 {[%emt 0:01:49]} 7. Nf3 {[%emt 0:01:27]} Nc6 {[%emt 0:00:30]} 8. O-O {[%emt 0:03:50]} O-O {[%emt 0:01:20]} 9. d3 {[%emt 0:00:49]} Bf5 {[%emt 0:01:16]} 10. Nd2 {[%emt 0:02:03]} Qd7 {[%emt 0:01:32]} 11. Ne4 {[%emt 0:00:50]} Be7 {[%emt 0:01:25]} 12. Re1 {[%emt 0:00:51]} Bh3 {[%emt 0:00:45]} 13. Bh1 {[%emt 0:00:29]} f5 {[%emt 0:03:54]} 14. Ng5 {[%emt 0:02:50]} Bxg5 {[%emt 0:01:35]} 15. Bxg5 {[%emt 0:00:21]} f4 {[%emt 0:00:25]} 16. Qb3+ {[%emt 0:01:35]} Kh8 {[%emt 0:00:58]} 17. Qxb7 {[%emt 0:01:22]} Qf5 {[%emt 0:03:44]} 18. Bxf4 {[%emt 0:08:26]} exf4 {[%emt 0:03:19]} 19. Qxc6 {[%emt 0:02:24]} fxg3 {[%emt 0:00:49]} 20. Qf3 {[%emt 0:00:48]} gxf2+ {[%emt 0:01:03]} 21. Kxf2 {[%emt 0:00:58]} Qe5 {[%emt 0:00:52]} 22. d4 {[%emt 0:01:02]} Rxf3+ {[%emt 0:00:37]} 23. Bxf3 {[%emt 0:00:19]} Qxh2+ {[%emt 0:00:24]} 24. Ke3 {[%emt 0:00:13]} Re8+ {[%emt 0:00:25]} 25. Kd3 {[%emt 0:00:23]} Bf5+ {[%emt 0:01:08]} 26. Kd2 {[%emt 0:00:46]} Qf4+ {[%emt 0:00:42]} 27. Kd1 {[%emt 0:00:07]} Rb8 {[%emt 0:01:14]} 28. Bc6 {[%emt 0:01:12]} Qe3 {[%emt 0:00:45]} 29. Rf1 {[%emt 0:00:59]} Rb2 {[%emt 0:00:50]} 0-1

[Event "DMP-III LIGA Senior PK 2020"]
[Site "Bystre"]
[Date "2020.07.11"]
[Round "7.6"]
[White "Trybowska, Anna"]
[Black "Kruczek, Aleksandra"]
[Result "1-0"]
[ECO "D06"]
[WhiteElo "1583"]
[BlackElo "1038"]
[Annotator "NA RC"]
[PlyCount "107"]
[EventDate "2020.07.05"]
[EventType "team-tourn"]
[EventCountry "POL"]
[SourceTitle "playchess.com"]
[Source "ChessBase"]
[SourceQuality "1"]
[TimeControl "5400+30"]

1. d4 {[%emt 0:00:00]} d5 {[%emt 0:00:00]} 2. c4 {[%emt 0:00:00]} c5 {[%emt 0:00:07]} 3. e3 {[%emt 0:00:19]} e6 {[%emt 0:01:52]} 4. Nc3 {[%emt 0:00:15]} Nf6 {[%emt 0:00:49]} 5. Nf3 {[%emt 0:00:43]} Nc6 {[%emt 0:03:15]} 6. a3 {[%emt 0:01:35]} Be7 {[%emt 0:01:34]} 7. dxc5 {[%emt 0:00:26]} O-O {[%emt 0:02:48]} 8. cxd5 {[%emt 0:00:19]} exd5 {[%emt 0:01:50]} 9. b4 {[%emt 0:00:33]} Ne4 {[%emt 0:03:27]} 10. Nxd5 {[%emt 0:01:32]} Bf6 {[%emt 0:01:05]} 11. Nxf6+ {[%emt 0:00:20]} Qxf6 {[%emt 0:01:59]} 12. Bd2 {[%emt 0:01:38]} Bg4 {[%emt 0:03:01]} 13. Rc1 {[%emt 0:08:54]} Rad8 {[%emt 0:04:07]} 14. Rc2 {[%emt 0:00:28]} Ne5 {[%emt 0:02:59]} 15. Be2 {[%emt 0:00:55]} Nd3+ {[%emt 0:10:35]} 16. Bxd3 {[%emt 0:01:01]} Rxd3 {[%emt 0:05:28]} 17. O-O {[%emt 0:04:09]} Nxd2 {[%emt 0:06:17]} 18. Rxd2 {[%emt 0:00:23]} Rxd2 {[%emt 0:00:21]} 19. Qxd2 {[%emt 0:00:08]} Bxf3 {[%emt 0:01:21]} 20. gxf3 {[%emt 0:00:09]} Qxf3 {[%emt 0:00:44]} 21. Qd1 {[%emt 0:00:44]} Qh3 {[%emt 0:01:44]} 22. Qd5 {[%emt 0:01:10]} h6 {[%emt 0:02:24]} 23. Qxb7 {[%emt 0:01:34]} Re8 {[%emt 0:01:21]} 24. Qg2 {[%emt 0:01:17]} Qh5 {[%emt 0:01:27]} 25. Kh1 {[%emt 0:00:39]} Rd8 {[%emt 0:02:03]} 26. f4 {[%emt 0:01:56]} Rd1 {[%emt 0:01:09]} 27. Qa8+ {[%emt 0:01:49]} Kh7 {[%emt 0:00:28]} 28. Qe4+ {[%emt 0:00:16]} f5 {[%emt 0:01:19]} 29. Qg2 {[%emt 0:00:58]} Rd3 {[%emt 0:04:15]} 30. Qc2 {[%emt 0:02:21]} Rxe3 {[%emt 0:05:28]} 31. c6 {[%emt 0:00:58]} Re8 {[%emt 0:02:05]} 32. c7 {[%emt 0:00:42]} Rc8 {[%emt 0:00:41]} 33. Qc6 {[%emt 0:01:08]} Qe2 {[%emt 0:08:33]} 34. Qg2 {[%emt 0:09:40]} Qxg2+ {[%emt 0:03:28]} 35. Kxg2 {[%emt 0:00:04]} Rxc7 {[%emt 0:00:15]} 36. Rf3 {[%emt 0:00:03]} Kg6 {[%emt 0:01:55]} 37. Kg3 {[%emt 0:00:29]} Rc1 {[%emt 0:01:31]} 38. Rb3 {[%emt 0:00:40]} Kf6 {[%emt 0:01:44]} 39. a4 {[%emt 0:01:03]} g5 {[%emt 0:01:55]} 40. a5 {[%emt 0:00:51]} h5 {[%emt 0:06:39]} 41. fxg5+ {[%emt 0:00:17]} Kxg5 {[%emt 0:00:07]} 42. h4+ {[%emt 0:00:24]} Kf6 {[%emt 0:00:33]} 43. b5 {[%emt 0:00:18]} Rf1 {[%emt 0:01:33]} 44. b6 {[%emt 0:00:13]} f4+ {[%emt 0:00:11]} 45. Kg2 {[%emt 0:00:07]} Ra1 {[%emt 0:01:05]} 46. b7 {[%emt 0:00:04]} Rxa5 {[%emt 0:01:13]} 47. b8=Q {[%emt 0:00:07]} f3+ {[%emt 0:00:50]} 48. Rxf3+ {[%emt 0:00:10]} Ke6 {[%emt 0:00:28]} 49. Qe8+ {[%emt 0:00:08]} Kd6 {[%emt 0:00:29]} 50. Rd3+ {[%emt 0:00:13]} Kc5 {[%emt 0:00:46]} 51. Qe5+ {[%emt 0:00:13]} Kb6 {[%emt 0:00:35]} 52. Rd6+ {[%emt 0:00:04]} Kb7 {[%emt 0:00:18]} 53. Qe7+ {[%emt 0:00:02]} Ka8 {[%emt 0:00:26]} 54. Rd8# {[%emt 0:00:03]} 1-0

[Event "DMP-III LIGA Senior PK 2020"]
[Site "Bystre"]
[Date "2020.07.11"]
[Round "7.10"]
[White "Krynicki, Henryk"]
[Black "Mikula, Michal"]
[Result "0-1"]
[ECO "B27"]
[WhiteElo "1661"]
[BlackElo "1858"]
[Annotator "NA RC"]
[PlyCount "34"]
[EventDate "2020.07.05"]
[EventType "team-tourn"]
[EventCountry "POL"]
[SourceTitle "playchess.com"]
[Source "ChessBase"]
[SourceQuality "1"]
[TimeControl "5400+30"]

{[%evp 8,32,21,7,33,-47,32767,32767,32767,32767,32767,32767,-7,32767,32767,32767,32767,32767,32767,-235,-249,-254,-183,-391,-231,-659,-681]} 1. e4 {[%emt 0:09:42]} c5 {[%emt 0:00:00]} 2. Nf3 {[%emt 0:00:12]} g6 {[%emt 0:00:00]} 3. d4 {[%emt 0:00:11]} cxd4 {[%emt 0:00:10]} 4. Qxd4 {[%emt 0:00:18]} Nf6 {[%emt 0:00:53]} 5. e5 {[%emt 0:06:13]} Nc6 {[%emt 0:03:41]} 6. Qh4 {[%emt 0:06:44]} (6. Qa4 $11 Nd5 7. Qb3) 6... Nxe5 {[%emt 0:02:06]} 7. Nxe5 {[%emt 0:05:28]} Qa5+ {[%emt 0:00:17]} 8. Nc3 {[%emt 0:01:23]} Qxe5+ {[%emt 0:00:20]} 9. Be2 {[%emt 0:00:07]} Qa5 {[%emt 0:04:53]} 10. O-O {[%emt 0:02:22]} Bg7 {[%emt 0:01:34]} 11. f4 {[%emt 0:02:25]} d6 {[%emt 0:04:32]} 12. g4 {[%emt 0:02:26]} Bd7 {[%emt 0:02:47]} 13. f5 {[%emt 0:14:11]} (13. g5 $17 {keeps fighting.} Nh5 14. Qf2) 13... gxf5 {[%emt 0:05:15]} 14. gxf5 {[%emt 0:00:53]} O-O-O {[%emt 0:00:13]} ({Resist} 14... Bxf5 15. Kh1 $17) 15. Qf2 $2 {[%emt 0:05:54]} (15. Bf3 {might work better.}) 15... Bc6 {[%emt 0:03:40]} (15... Rhg8 $142 16. Kh1 Bc6+ 17. Bf3 Ng4) 16. Bd2 $2 {[%emt 0:07:43]} (16. Bf3) 16... Rhg8 $19 {[%emt 0:03:48]} 17. h3 {[%emt 0:03:16]} Bh6+ 0-1

[Event "DMP-III LIGA Senior PK 2020"]
[Site "Bystre"]
[Date "2020.07.11"]
[Round "7.11"]
[White "Sygulski, Piotr"]
[Black "Borukalo, Zdzislaw"]
[Result "1-0"]
[ECO "B33"]
[WhiteElo "1652"]
[BlackElo "1679"]
[Annotator "NA RC"]
[PlyCount "83"]
[EventDate "2020.07.05"]
[EventType "team-tourn"]
[EventCountry "POL"]
[SourceTitle "playchess.com"]
[Source "ChessBase"]
[SourceQuality "1"]
[TimeControl "5400+30"]

1. e4 {[%emt 0:00:00]} c5 {[%emt 0:00:00]} 2. Nf3 {[%emt 0:00:00]} Nc6 {[%emt 0:00:00]} 3. d4 {[%emt 0:00:00]} cxd4 {[%emt 0:00:00]} 4. Nxd4 {[%emt 0:00:00]} Nf6 {[%emt 0:00:27]} 5. Nc3 {[%emt 0:00:00]} e5 {[%emt 0:00:07]} 6. Ndb5 {[%emt 0:00:00]} d6 {[%emt 0:00:18]} 7. Bg5 {[%emt 0:00:01]} a6 {[%emt 0:00:38]} 8. Na3 {[%emt 0:00:04]} b5 {[%emt 0:00:12]} 9. Bxf6 {[%emt 0:00:31]} gxf6 {[%emt 0:00:24]} 10. Nd5 {[%emt 0:00:05]} Bg7 {[%emt 0:01:30]} 11. Bd3 {[%emt 0:00:49]} Ne7 {[%emt 0:05:20]} 12. Nxe7 {[%emt 0:03:38]} Qxe7 {[%emt 0:01:01]} 13. Qd2 {[%emt 0:02:30]} O-O {[%emt 0:08:29]} 14. O-O {[%emt 0:01:26]} Be6 {[%emt 0:08:12]} 15. c4 {[%emt 0:02:23]} bxc4 {[%emt 0:02:49]} 16. Bxc4 {[%emt 0:00:22]} f5 {[%emt 0:01:20]} 17. exf5 {[%emt 0:08:17]} Bxf5 {[%emt 0:01:05]} 18. Rfd1 {[%emt 0:01:10]} Rfd8 {[%emt 0:02:01]} 19. Bd5 {[%emt 0:00:34]} Rab8 {[%emt 0:04:29]} 20. Rac1 {[%emt 0:02:16]} Be6 {[%emt 0:06:57]} 21. b3 {[%emt 0:02:10]} Rbc8 {[%emt 0:07:41]} 22. Rxc8 {[%emt 0:01:46]} Bxc8 {[%emt 0:01:27]} 23. Nc4 {[%emt 0:01:44]} Kh8 {[%emt 0:01:39]} 24. Bxf7 {[%emt 0:08:20]} d5 {[%emt 0:09:10]} 25. Bh5 {[%emt 0:01:17]} Qh4 {[%emt 0:03:46]} 26. Bf3 {[%emt 0:04:12]} e4 {[%emt 0:02:06]} 27. g3 {[%emt 0:01:15]} Qe7 {[%emt 0:02:30]} 28. Be2 {[%emt 0:01:57]} Bf6 {[%emt 0:03:57]} 29. Ne3 {[%emt 0:03:54]} d4 {[%emt 0:01:18]} 30. Nc4 {[%emt 0:01:19]} Bg5 {[%emt 0:07:46]} 31. Qa5 {[%emt 0:01:38]} Bf6 {[%emt 0:00:41]} 32. Re1 {[%emt 0:09:09]} Bb7 {[%emt 0:02:22]} 33. Bf1 {[%emt 0:06:01]} e3 {[%emt 0:05:00]} 34. Bd3 {[%emt 0:02:49]} Rd5 {[%emt 0:04:37]} 35. Qb6 {[%emt 0:01:41]} Rb5 {[%emt 0:03:13]} 36. Qd6 {[%emt 0:00:49]} Qf7 {[%emt 0:02:32]} 37. fxe3 {[%emt 0:02:09]} dxe3 {[%emt 0:00:08]} 38. Qb8+ {[%emt 0:00:31]} Kg7 {[%emt 0:00:33]} 39. Nd6 {[%emt 0:01:25]} Qd5 {[%emt 0:00:42]} 40. Qc7+ {[%emt 0:00:05]} Kf8 {[%emt 0:00:32]} 41. Be4 {[%emt 0:01:06]} Qxe4 {[%emt 0:00:34]} 42. Qf7# 1-0

[Event "DMP-III LIGA Senior PK 2020"]
[Site "Bystre"]
[Date "2020.07.11"]
[Round "7.13"]
[White "Miasik, Adrian"]
[Black "Dobrzanski, Krzysztof"]
[Result "1-0"]
[ECO "D52"]
[WhiteElo "1881"]
[BlackElo "1722"]
[Annotator "NA RC"]
[PlyCount "55"]
[EventDate "2020.07.05"]
[EventType "team-tourn"]
[EventCountry "POL"]
[SourceTitle "playchess.com"]
[Source "ChessBase"]
[SourceQuality "1"]
[TimeControl "5400+30"]

{[%evp 8,35,18,25,22,23,38,11,28,25,25,32767,32767,32767,32767,32767,50,50,45,22,38,19,21,32,30,34,31,43,47,15]} 1. d4 {[%emt 0:00:00]} d5 {[%emt 0:00:00]} 2. c4 {[%emt 0:00:00]} c6 {[%emt 0:01:01]} 3. Nc3 {[%emt 0:00:09]} Nf6 {[%emt 0:00:30]} 4. Nf3 {[%emt 0:00:21]} e6 {[%emt 0:02:07]} 5. Bg5 {[%emt 0:01:16]} Nbd7 {[%emt 0:01:29]} 6. e3 {[%emt 0:01:53]} Be7 {[%emt 0:01:36]} 7. Bd3 {[%emt 0:00:35]} O-O {[%emt 0:05:08]} (7... h6 $5 {[%cal Rh6g5]} 8. Bf4 dxc4 9. Bxc4 O-O $14) 8. O-O {[%emt 0:01:19]} dxc4 {[%emt 0:02:15]} 9. Bxc4 {[%emt 0:00:34]} Nd5 {[%emt 0:00:16]} 10. Bxe7 {[%emt 0:02:18]} Qxe7 {[%emt 0:00:19]} 11. e4 {[%emt 0:00:17]} Qb4 {[%emt 0:05:53]} 12. Bxd5 {[%emt 0:30:45]} exd5 {[%emt 0:02:55]} 13. exd5 {[%emt 0:01:58]} Qxb2 {[%emt 0:01:14]} 14. Qd3 {[%emt 0:01:38]} Nf6 {[%emt 0:02:04]} 15. dxc6 {[%emt 0:02:07]} bxc6 {[%emt 0:00:21]} 16. Ne5 {[%emt 0:04:10]} Qb6 {[%emt 0:03:12]} 17. Rab1 {[%emt 0:04:25]} Qc7 {[%emt 0:01:32]} 18. Rfc1 $11 {[%emt 0:02:51]} Be6 {[%emt 0:06:37]} 19. Nb5 {[%emt 0:03:32]} Qa5 {[%emt 0:04:02]} 20. Nxc6 {[%emt 0:01:26]} Qxa2 {[%emt 0:00:39]} 21. Nc7 {[%emt 0:00:50]} Nd5 {[%emt 0:02:16]} 22. Ra1 {[%emt 0:03:35]} Nf4 {[%emt 0:02:18]} 23. Qf3 {[%emt 0:06:09]} Ne2+ {[%emt 0:06:39]} 24. Kh1 {[%emt 0:02:37]} Nxc1 {[%emt 0:03:04]} 25. Rxa2 {[%emt 0:00:13]} Nxa2 {[%emt 0:01:58]} 26. Nxa8 {[%emt 0:00:48]} a5 {[%emt 0:00:50]} 27. Nc7 {[%emt 0:01:18]} Nb4 {[%emt 0:00:17]} 28. Ne7+ {[%emt 0:00:58]} 1-0

[Event "DMP-III LIGA Senior PK 2020"]
[Site "Bystre"]
[Date "2020.07.11"]
[Round "7.14"]
[White "Palacki, Rafal"]
[Black "Ciasnocha, Michal"]
[Result "1/2-1/2"]
[ECO "C42"]
[WhiteElo "1755"]
[BlackElo "1795"]
[Annotator "NA"]
[PlyCount "77"]
[EventDate "2020.07.05"]
[EventType "team-tourn"]
[EventCountry "POL"]
[SourceTitle "playchess.com"]
[Source "ChessBase"]
[SourceQuality "1"]
[TimeControl "5400+30"]

1. e4 {[%emt 0:00:30]} e5 {[%emt 0:00:00]} 2. Nf3 {[%emt 0:00:02]} Nf6 {[%emt 0:00:00]} 3. Nxe5 {[%emt 0:00:51]} d6 {[%emt 0:00:00]} 4. Nf3 {[%emt 0:00:07]} Nxe4 {[%emt 0:00:08]} 5. d4 {[%emt 0:00:15]} d5 {[%emt 0:00:22]} 6. Bd3 {[%emt 0:00:23]} Bd6 {[%emt 0:01:10]} 7. O-O {[%emt 0:00:28]} O-O {[%emt 0:00:33]} 8. Re1 {[%emt 0:01:20]} Re8 {[%emt 0:01:29]} 9. c4 {[%emt 0:00:55]} c6 {[%emt 0:01:37]} 10. Nc3 {[%emt 0:01:29]} Nxc3 {[%emt 0:03:00]} 11. bxc3 {[%emt 0:00:15]} Nd7 {[%emt 0:08:43]} 12. Bg5 {[%emt 0:02:21]} f6 {[%emt 0:06:33]} 13. Bh4 {[%emt 0:01:23]} Nf8 {[%emt 0:02:04]} 14. Qb3 {[%emt 0:04:10]} Be6 {[%emt 0:10:14]} 15. c5 {[%emt 0:02:11]} Bc7 {[%emt 0:04:11]} 16. Qxb7 {[%emt 0:02:56]} Qd7 {[%emt 0:00:54]} 17. Qb1 {[%emt 0:01:16]} Bg4 {[%emt 0:03:27]} 18. Nd2 {[%emt 0:03:03]} Rxe1+ {[%emt 0:04:37]} 19. Qxe1 {[%emt 0:01:45]} Ng6 {[%emt 0:01:03]} 20. Bxg6 {[%emt 0:08:13]} hxg6 {[%emt 0:00:06]} 21. f3 {[%emt 0:00:14]} Bf5 {[%emt 0:00:52]} 22. Nf1 {[%emt 0:07:55]} Ba5 {[%emt 0:05:39]} 23. Bg3 {[%emt 0:05:08]} Bd3 {[%emt 0:03:09]} 24. Qd2 {[%emt 0:01:16]} Ba6 {[%emt 0:03:25]} 25. Re1 {[%emt 0:07:54]} Re8 {[%emt 0:01:10]} 26. Rxe8+ {[%emt 0:13:26]} Qxe8 {[%emt 0:00:04]} 27. Qe1 {[%emt 0:00:14]} Qxe1 {[%emt 0:06:10]} 28. Bxe1 {[%emt 0:00:04]} Bc7 {[%emt 0:00:42]} 29. g3 {[%emt 0:09:06]} Kf7 {[%emt 0:01:14]} 30. Kf2 {[%emt 0:04:45]} g5 {[%emt 0:02:19]} 31. Bd2 {[%emt 0:02:30]} Ke6 {[%emt 0:01:59]} 32. Bc1 {[%emt 0:01:10]} Ba5 {[%emt 0:00:39]} 33. Bb2 {[%emt 0:00:32]} Bc4 {[%emt 0:01:26]} 34. a3 {[%emt 0:00:27]} Bc7 {[%emt 0:00:58]} 35. Nd2 {[%emt 0:01:03]} Bd3 {[%emt 0:00:58]} 36. Ke3 {[%emt 0:00:26]} Ba6 {[%emt 0:01:31]} 37. a4 {[%emt 0:04:31]} Kf5 {[%emt 0:00:54]} 38. Ba3 {[%emt 0:02:48]} g4 {[%emt 0:01:49]} 39. Bb4 1/2-1/2

[Event "DMP-III LIGA Senior PK 2020"]
[Site "Bystre"]
[Date "2020.07.11"]
[Round "7.15"]
[White "Babiarz, Arkadiusz"]
[Black "Zajac, Karol"]
[Result "1-0"]
[ECO "C77"]
[WhiteElo "1840"]
[BlackElo "1652"]
[Annotator "NA RC"]
[PlyCount "69"]
[EventDate "2020.07.05"]
[EventType "team-tourn"]
[EventCountry "POL"]
[SourceTitle "playchess.com"]
[Source "ChessBase"]
[SourceQuality "1"]
[TimeControl "5400+30"]

1. e4 {[%emt 0:00:00]} e5 {[%emt 0:00:00]} 2. Nf3 {[%emt 0:00:00]} Nc6 {[%emt 0:00:00]} 3. Bb5 {[%emt 0:00:00]} a6 {[%emt 0:00:27]} 4. Ba4 {[%emt 0:00:00]} Nf6 {[%emt 0:00:08]} 5. Qe2 {[%emt 0:00:00]} d6 {[%emt 0:00:31]} 6. c3 {[%emt 0:00:05]} g6 {[%emt 0:01:28] C77: Ruy Lopez: 3...a6 4 Ba4 Nf6, unusual lines.} 7. d4 {[%emt 0:02:09]} b5 {[%emt 0:01:04]} 8. Bb3 {[%emt 0:00:42]} Bg7 {[%emt 0:08:34]} 9. a4 {[%emt 0:00:58]} Rb8 {[%emt 0:04:25]} 10. O-O {[%emt 0:05:00]} O-O {[%emt 0:04:08] [#]} 11. Re1 $146 {[%emt 0:02:59]} ({Predecessor:} 11. axb5 axb5 12. dxe5 dxe5 13. Bg5 h6 14. Rd1 Qe7 15. Bxf6 Qxf6 16. Nbd2 Nd8 17. Ra7 {½-½ (101) Boric,E (2319)-Szczepkowska,K (2375) Valjevo 2012}) 11... Re8 {[%emt 0:04:52]} 12. Ng5 {[%emt 0:01:13]} Rf8 {[%emt 0:00:18]} 13. Nf3 {[%emt 0:00:06]} Re8 {[%emt 0:00:12]} 14. Nbd2 {[%emt 0:08:26]} Nh5 {[%emt 0:07:10]} 15. dxe5 {[%emt 0:10:58]} Nxe5 {[%emt 0:02:49]} 16. Nxe5 {[%emt 0:02:14]} Bxe5 {[%emt 0:02:38]} 17. Nf3 {[%emt 0:00:39]} Nf4 {[%emt 0:11:17]} 18. Bxf4 {[%emt 0:02:05]} Bxf4 {[%emt 0:00:08]} 19. axb5 {[%emt 0:00:13]} axb5 {[%emt 0:00:12]} 20. Nd4 $11 {[%emt 0:02:18]} Bd7 {[%emt 0:07:45]} 21. Ra7 {[%emt 0:00:55]} c5 {[%emt 0:03:22]} 22. Bxf7+ {[%emt 0:06:11]} Kh8 {[%emt 0:10:31]} 23. Bxe8 {[%emt 0:01:57]} Qxe8 {[%emt 0:01:38]} 24. Nf3 {[%emt 0:01:20]} Be6 {[%emt 0:02:43]} 25. g3 {[%emt 0:01:32]} Bh6 {[%emt 0:00:29]} 26. Qd3 {[%emt 0:02:47]} Rd8 {[%emt 0:02:44]} 27. e5 {[%emt 0:01:22]} Bf5 {[%emt 0:01:38]} 28. Qd5 {[%emt 0:00:19]} dxe5 {[%emt 0:01:29]} 29. Rxe5 {[%emt 0:02:47]} Qg8 {[%emt 0:00:55]} 30. Qxg8+ {[%emt 0:00:30]} Kxg8 {[%emt 0:00:16]} 31. Kg2 {[%emt 0:00:46]} Bc1 {[%emt 0:02:02]} 32. Ree7 {[%emt 0:02:18]} Bxb2 {[%emt 0:00:50]} 33. Rg7+ {[%emt 0:00:08]} Kf8 {[%emt 0:00:23]} 34. Raf7+ {[%emt 0:00:08]} Ke8 {[%emt 0:00:12]} 35. Ng5 1-0

[Event "DMP-III LIGA Senior PK 2020"]
[Site "Bystre"]
[Date "2020.07.11"]
[Round "7.16"]
[White "Materniak, Aleksander"]
[Black "Ziemniak, Piotr"]
[Result "0-1"]
[ECO "B90"]
[WhiteElo "1660"]
[BlackElo "1791"]
[Annotator "NA RC"]
[PlyCount "74"]
[EventDate "2020.07.05"]
[EventType "team-tourn"]
[EventCountry "POL"]
[SourceTitle "playchess.com"]
[Source "ChessBase"]
[SourceQuality "1"]
[TimeControl "5400+30"]

1. e4 {[%emt 0:00:00]} c5 {[%emt 0:00:00]} 2. Nf3 {[%emt 0:00:00]} d6 {[%emt 0:00:00]} 3. d4 {[%emt 0:00:00]} cxd4 {[%emt 0:00:00]} 4. Nxd4 {[%emt 0:00:00]} Nf6 {[%emt 0:00:00]} 5. Nc3 {[%emt 0:00:00]} a6 {[%emt 0:00:09]} 6. Be3 {[%emt 0:00:09]} e5 {[%emt 0:00:38]} 7. Nb3 {[%emt 0:00:04]} Be6 {[%emt 0:00:24]} 8. f3 {[%emt 0:00:48]} Be7 {[%emt 0:00:48]} 9. Qd2 {[%emt 0:00:05]} Qc7 {[%emt 0:00:48]} 10. O-O-O {[%emt 0:00:40]} b5 {[%emt 0:00:42]} 11. g4 {[%emt 0:00:19]} O-O {[%emt 0:05:02]} 12. h4 {[%emt 0:00:50]} b4 {[%emt 0:01:38]} 13. Nd5 {[%emt 0:00:33]} Bxd5 {[%emt 0:00:31]} 14. exd5 {[%emt 0:00:09]} a5 {[%emt 0:00:26]} 15. Kb1 {[%emt 0:04:10]} a4 {[%emt 0:04:58]} 16. Nc1 {[%emt 0:01:17]} Ra5 {[%emt 0:03:56]} 17. Qxb4 {[%emt 0:06:34]} Nxd5 {[%emt 0:03:35]} 18. Rxd5 {[%emt 0:12:56]} Rxd5 {[%emt 0:00:59]} 19. Bc4 {[%emt 0:01:28]} Nc6 {[%emt 0:08:08]} 20. Qb6 {[%emt 0:08:52]} Qxb6 {[%emt 0:11:36]} 21. Bxb6 {[%emt 0:00:10]} Rd2 {[%emt 0:02:23]} 22. Nd3 {[%emt 0:13:41]} Rb8 {[%emt 0:05:58]} 23. Be3 {[%emt 0:07:00]} Re2 {[%emt 0:00:24]} 24. Nxe5 {[%emt 0:01:29]} Rxe3 {[%emt 0:03:28]} 25. Nxc6 {[%emt 0:00:29]} Rc8 {[%emt 0:01:26]} 26. Bd5 {[%emt 0:01:02]} Bxh4 {[%emt 0:03:30]} 27. Be4 {[%emt 0:02:13]} g6 {[%emt 0:00:41]} 28. Nb4 {[%emt 0:01:51]} Rb8 {[%emt 0:07:02]} 29. Nd3 {[%emt 0:02:45]} Bf6 {[%emt 0:02:02]} 30. Kc1 {[%emt 0:02:15]} Re2 {[%emt 0:00:42]} 31. Kd1 {[%emt 0:01:36]} Rg2 {[%emt 0:00:38]} 32. Nf4 {[%emt 0:01:59]} Rxb2 {[%emt 0:01:22]} 33. Kc1 {[%emt 0:02:12]} Rxa2 {[%emt 0:00:15]} 34. Nxg2 {[%emt 0:02:37]} Ra1+ {[%emt 0:00:05]} 35. Kd2 {[%emt 0:00:11]} Rxh1 {[%emt 0:00:06]} 36. f4 {[%emt 0:02:43]} a3 {[%emt 0:00:11]} 37. Bd5 {[%emt 0:00:18]} Rh2 {[%emt 0:00:11]} 0-1

[Event "DMP-III LIGA Senior PK 2020"]
[Site "Bystre"]
[Date "2020.07.11"]
[Round "7.17"]
[White "Wozniak, Grzegorz"]
[Black "Materniak, Marek"]
[Result "1/2-1/2"]
[ECO "B23"]
[WhiteElo "1608"]
[BlackElo "1794"]
[Annotator "NA RC"]
[PlyCount "71"]
[EventDate "2020.07.05"]
[EventType "team-tourn"]
[EventCountry "POL"]
[SourceTitle "playchess.com"]
[Source "ChessBase"]
[SourceQuality "1"]
[TimeControl "5400+30"]

1. e4 {[%emt 0:00:00]} c5 {[%emt 0:00:00]} 2. Nc3 {[%emt 0:00:00]} e6 {[%emt 0:00:00]} 3. d4 {[%emt 0:00:50]} cxd4 {[%emt 0:00:00]} 4. Qxd4 {[%emt 0:00:05]} a6 {[%emt 0:00:25]} 5. b3 {[%emt 0:00:17]} Qc7 {[%emt 0:00:16]} 6. Bb2 {[%emt 0:00:19]} Nf6 {[%emt 0:01:49]} 7. f3 {[%emt 0:01:02]} Nc6 {[%emt 0:03:43]} 8. Qd2 {[%emt 0:00:09]} Bb4 {[%emt 0:02:23]} 9. O-O-O {[%emt 0:00:35]} Qa5 {[%emt 0:06:46]} 10. Kb1 {[%emt 0:04:55]} O-O {[%emt 0:05:56]} 11. Nge2 {[%emt 0:05:03]} d5 {[%emt 0:04:29]} 12. Qg5 Qd8 {[%emt 0:02:41]} 13. exd5 {[%emt 0:13:15]} Nxd5 {[%emt 0:01:06]} 14. Qxd8 {[%emt 0:01:55]} Rxd8 {[%emt 0:00:25]} 15. Nxd5 {[%emt 0:00:16]} Rxd5 {[%emt 0:02:15]} 16. Rxd5 {[%emt 0:00:35]} exd5 {[%emt 0:00:15]} 17. Nd4 {[%emt 0:01:41]} Bc5 {[%emt 0:01:16]} 18. Nxc6 {[%emt 0:00:37]} bxc6 {[%emt 0:00:09]} 19. Bd3 {[%emt 0:00:20]} Bd7 {[%emt 0:02:52]} 20. Re1 {[%emt 0:00:21]} a5 {[%emt 0:00:50]} 21. a3 {[%emt 0:07:02]} h6 {[%emt 0:01:30]} 22. c3 {[%emt 0:05:54]} Bd6 {[%emt 0:02:05]} 23. h3 {[%emt 0:01:56]} Rb8 {[%emt 0:01:07]} 24. b4 {[%emt 0:04:58]} c5 {[%emt 0:01:13]} 25. bxc5 {[%emt 0:01:13]} Bxc5 {[%emt 0:00:31]} 26. Ka1 {[%emt 0:00:53]} Be6 {[%emt 0:01:25]} 27. Re2 {[%emt 0:05:38]} Rb6 {[%emt 0:02:48]} 28. Ka2 {[%emt 0:08:52]} Kf8 {[%emt 0:02:12]} 29. Bc1 {[%emt 0:03:20]} Ke7 {[%emt 0:04:10]} 30. Rb2 {[%emt 0:06:44]} d4+ {[%emt 0:10:45]} 31. c4 {[%emt 0:00:15]} Kd7 {[%emt 0:01:53]} 32. Rxb6 {[%emt 0:01:41]} Bxb6 {[%emt 0:00:15]} 33. Kb3 {[%emt 0:00:34]} Kc6 {[%emt 0:00:28]} 34. Bd2 {[%emt 0:04:36]} Kc5 {[%emt 0:00:54]} 35. a4 {[%emt 0:00:33]} Bc7 36. Bc1 1/2-1/2